[Event "Late-Titled-Tuesday-Blitz-October-10-2023"]
[Site "Chess.com"]
[Date "2023.10.10"]
[Round "7"]
[White "Jospem"]
[Black "iturrizaga"]
[Result "1-0"]
[WhiteElo "3133"]
[BlackElo "3011"]
[TimeControl "180+1"]
[EndTime "15:13:45 PDT"]
[Termination "Jospem won on time"]

1. e4 {[%clk 0:03:00.9]} 1... c5 {[%clk 0:03:00.1]} 2. Nf3 {[%clk 0:03:01.5]}
2... e6 {[%clk 0:03:00.5]} 3. c3 {[%clk 0:03:02.1]} 3... d5 {[%clk 0:02:57.8]}
4. e5 {[%clk 0:03:02.2]} 4... d4 {[%clk 0:02:54.2]} 5. g3 {[%clk 0:03:02.7]}
5... Nc6 {[%clk 0:02:51.8]} 6. d3 {[%clk 0:03:02.9]} 6... Nge7 {[%clk
0:02:48.7]} 7. Qe2 {[%clk 0:02:59.9]} 7... Ng6 {[%clk 0:02:45.5]} 8. Bg2 {[%clk
0:03:00.3]} 8... Qc7 {[%clk 0:02:42.8]} 9. cxd4 {[%clk 0:02:59.7]} 9... cxd4
{[%clk 0:02:41.1]} 10. O-O {[%clk 0:03:00.2]} 10... Be7 {[%clk 0:02:10.7]} 11.
Nbd2 {[%clk 0:02:54.5]} 11... O-O {[%clk 0:02:08]} 12. Re1 {[%clk 0:02:50]}
12... Rd8 {[%clk 0:02:07.4]} 13. a3 {[%clk 0:02:48.9]} 13... Rd5 {[%clk
0:01:54.6]} 14. Nc4 {[%clk 0:02:42.8]} 14... b5 {[%clk 0:01:54.5]} 15. Nd6
{[%clk 0:02:43.3]} 15... Ncxe5 {[%clk 0:01:47.6]} 16. Nxe5 {[%clk 0:02:06]}
16... Rxe5 {[%clk 0:01:48.5]} 17. Qd1 {[%clk 0:02:06.4]} 17... Rxe1+ {[%clk
0:01:40.2]} 18. Qxe1 {[%clk 0:02:07.3]} 18... Rb8 {[%clk 0:01:40.4]} 19. Nxc8
{[%clk 0:02:07.9]} 19... Rxc8 {[%clk 0:01:39.8]} 20. Bd2 {[%clk 0:02:08.8]}
20... Qd7 {[%clk 0:01:30.9]} 21. h4 {[%clk 0:02:05.1]} 21... h6 {[%clk 0:01:31]}
22. h5 {[%clk 0:01:59.2]} 22... Nf8 {[%clk 0:01:31.1]} 23. Rc1 {[%clk
0:01:56.7]} 23... Nh7 {[%clk 0:01:25.5]} 24. Rxc8+ {[%clk 0:01:50.3]} 24... Qxc8
{[%clk 0:01:26.4]} 25. Qe4 {[%clk 0:01:50.6]} 25... Qc2 {[%clk 0:01:07.9]} 26.
Bf4 {[%clk 0:01:35.7]} 26... Qxb2 {[%clk 0:01:00.3]} 27. Qa8+ {[%clk 0:01:35.9]}
27... Nf8 {[%clk 0:00:54.8]} 28. Qxa7 {[%clk 0:01:32.9]} 28... Qxa3 {[%clk
0:00:47.6]} 29. Qb7 {[%clk 0:01:30.6]} 29... Qc5 {[%clk 0:00:39.3]} 30. Bf3
{[%clk 0:01:31.1]} 30... b4 {[%clk 0:00:39.2]} 31. Bd1 {[%clk 0:01:31.8]} 31...
Bd6 {[%clk 0:00:33.3]} 32. Bd2 {[%clk 0:01:32]} 32... Qa5 {[%clk 0:00:26.6]} 33.
Kf1 {[%clk 0:01:23.8]} 33... Qf5 {[%clk 0:00:19.2]} 34. Qf3 {[%clk 0:00:44.3]}
34... Qxf3 {[%clk 0:00:18.1]} 35. Bxf3 {[%clk 0:00:45.2]} 35... Nd7 {[%clk
0:00:18]} 36. Ke2 {[%clk 0:00:45.6]} 36... Kf8 {[%clk 0:00:17.3]} 37. Kd1 {[%clk
0:00:46.1]} 37... Ke7 {[%clk 0:00:17.3]} 38. Kc2 {[%clk 0:00:46.8]} 38... Ne5
{[%clk 0:00:16.6]} 39. Be2 {[%clk 0:00:46]} 39... Kd7 {[%clk 0:00:17]} 40. Kb3
{[%clk 0:00:46.2]} 40... Nc6 {[%clk 0:00:15.9]} 41. Ka4 {[%clk 0:00:45.1]} 41...
Kc7 {[%clk 0:00:15.9]} 42. Kb5 {[%clk 0:00:39]} 42... b3 {[%clk 0:00:15.2]} 43.
Bc1 {[%clk 0:00:39.4]} 43... Nb4 {[%clk 0:00:07.7]} 44. Kc4 {[%clk 0:00:37.6]}
44... Nd5 {[%clk 0:00:04.2]} 45. Kxb3 {[%clk 0:00:36.8]} 45... Be5 {[%clk
0:00:04.4]} 46. Kc4 {[%clk 0:00:35.5]} 46... Bf6 {[%clk 0:00:04.6]} 47. Bf3
{[%clk 0:00:36.1]} 47... Nb6+ {[%clk 0:00:04.9]} 48. Kb5 {[%clk 0:00:36.3]}
48... Nd7 {[%clk 0:00:05.5]} 49. Bf4+ {[%clk 0:00:34.9]} 49... Be5 {[%clk
0:00:06.1]} 50. Bd2 {[%clk 0:00:33.8]} 50... Bd6 {[%clk 0:00:06.4]} 51. Be2
{[%clk 0:00:33.3]} 51... Ne5 {[%clk 0:00:05.6]} 52. Ba5+ {[%clk 0:00:33.6]}
52... Kd7 {[%clk 0:00:06]} 53. Bd2 {[%clk 0:00:34.5]} 53... Ke7 {[%clk
0:00:06.3]} 54. f4 {[%clk 0:00:32.6]} 54... Nd7 {[%clk 0:00:06.8]} 55. Kc4
{[%clk 0:00:33.2]} 55... Bc5 {[%clk 0:00:06.9]} 56. Bf3 {[%clk 0:00:32.6]} 56...
Ba7 {[%clk 0:00:07]} 57. Bd1 {[%clk 0:00:31.9]} 57... Nf6 {[%clk 0:00:06.3]} 58.
Bf3 {[%clk 0:00:31.7]} 58... Nd7 {[%clk 0:00:06.4]} 59. Bb4+ {[%clk 0:00:32.1]}
59... Kd8 {[%clk 0:00:06.2]} 60. Kb5 {[%clk 0:00:30.4]} 60... Nf6 {[%clk
0:00:05.8]} 61. Kc6 {[%clk 0:00:30]} 61... Bb8 {[%clk 0:00:03.4]} 62. Bc5 {[%clk
0:00:30.2]} 62... Bc7 {[%clk 0:00:03]} 63. Bxd4 {[%clk 0:00:29.5]} 63... Ba5
{[%clk 0:00:03.1]} 64. g4 {[%clk 0:00:25.9]} 64... Bd2 {[%clk 0:00:03.2]} 65.
Be5 {[%clk 0:00:24.8]} 65... Ke7 {[%clk 0:00:03.3]} 66. Bd6+ {[%clk 0:00:23.6]}
66... Ke8 {[%clk 0:00:03.6]} 67. Kc7 {[%clk 0:00:21.7]} 67... Nd5+ {[%clk
0:00:02.5]} 68. Bxd5 {[%clk 0:00:21.1]} 68... exd5 {[%clk 0:00:03.4]} 69. Kc6
{[%clk 0:00:21.1]} 69... d4 {[%clk 0:00:03.3]} 70. Kd5 {[%clk 0:00:21.8]} 70...
Be3 {[%clk 0:00:03.4]} 71. Be5 {[%clk 0:00:21.8]} 71... f6 {[%clk 0:00:03.8]}
72. Bb8 {[%clk 0:00:21]} 72... Kf7 {[%clk 0:00:04.1]} 73. f5 {[%clk 0:00:20.5]}
73... Ke7 {[%clk 0:00:03.7]} 74. Bd6+ {[%clk 0:00:19.9]} 74... Ke8 {[%clk
0:00:03.4]} 75. Bc5 {[%clk 0:00:20.3]} 75... Bf4 {[%clk 0:00:03.2]} 76. Bxd4
{[%clk 0:00:18.6]} 76... Bb8 {[%clk 0:00:04.1]} 77. Ke6 {[%clk 0:00:18.2]} 77...
Bc7 {[%clk 0:00:04]} 78. Bc5 {[%clk 0:00:18.8]} 78... Bd8 {[%clk 0:00:04.5]} 79.
d4 {[%clk 0:00:18.8]} 79... Bc7 {[%clk 0:00:04.5]} 80. d5 {[%clk 0:00:19.4]}
80... Be5 {[%clk 0:00:04.7]} 81. d6 {[%clk 0:00:18.9]} 1-0

[Event "Late-Titled-Tuesday-Blitz-October-10-2023"]
[Site "Chess.com"]
[Date "2023.10.10"]
[Round "7"]
[White "K_A_S_T_O_R"]
[Black "MKlose11"]
[Result "1/2-1/2"]
[WhiteElo "2879"]
[BlackElo "2640"]
[TimeControl "180+1"]
[EndTime "15:14:06 PDT"]
[Termination "Game drawn - insufficient material"]

1. e4 {[%clk 0:02:56.2]} 1... e6 {[%clk 0:02:51.2]} 2. d4 {[%clk 0:02:55.8]}
2... d5 {[%clk 0:02:51.1]} 3. Nc3 {[%clk 0:02:56.4]} 3... Bb4 {[%clk 0:02:50.6]}
4. e5 {[%clk 0:02:55.7]} 4... Ne7 {[%clk 0:02:47.7]} 5. Bd2 {[%clk 0:02:51.4]}
5... b6 {[%clk 0:02:46.9]} 6. Bb5+ {[%clk 0:02:50.4]} 6... c6 {[%clk 0:02:39]}
7. Ba4 {[%clk 0:02:50.2]} 7... O-O {[%clk 0:02:37.6]} 8. Nce2 {[%clk 0:02:50]}
8... Bxd2+ {[%clk 0:02:36.6]} 9. Qxd2 {[%clk 0:02:50.9]} 9... c5 {[%clk
0:02:25.3]} 10. c3 {[%clk 0:02:50.3]} 10... Ba6 {[%clk 0:02:21.8]} 11. Nf3
{[%clk 0:02:49.3]} 11... Nbc6 {[%clk 0:02:19.7]} 12. O-O {[%clk 0:02:48.5]}
12... Rc8 {[%clk 0:02:18.3]} 13. Rfc1 {[%clk 0:02:44.8]} 13... Bxe2 {[%clk
0:02:11.9]} 14. Qxe2 {[%clk 0:02:44.1]} 14... Nf5 {[%clk 0:02:07]} 15. Qd2
{[%clk 0:02:38.5]} 15... Nh4 {[%clk 0:02:02.1]} 16. Ne1 {[%clk 0:02:34.3]} 16...
Nf5 {[%clk 0:02:02]} 17. Nf3 {[%clk 0:02:21]} 17... Nh4 {[%clk 0:02:01.5]} 18.
Nxh4 {[%clk 0:02:15.7]} 18... Qxh4 {[%clk 0:02:00.8]} 19. g3 {[%clk 0:02:16.3]}
19... Qg4 {[%clk 0:01:30.2]} 20. Bd1 {[%clk 0:02:13.6]} 20... Qh3 {[%clk
0:01:29.1]} 21. f4 {[%clk 0:02:03.7]} 21... h5 {[%clk 0:01:18.2]} 22. Qf2 {[%clk
0:01:49.4]} 22... g6 {[%clk 0:01:13.6]} 23. Be2 {[%clk 0:01:46.5]} 23... Kg7
{[%clk 0:01:10.2]} 24. dxc5 {[%clk 0:01:41]} 24... bxc5 {[%clk 0:01:09.7]} 25.
Qxc5 {[%clk 0:01:40.2]} 25... h4 {[%clk 0:01:04]} 26. Qf2 {[%clk 0:01:35.7]}
26... hxg3 {[%clk 0:01:02.3]} 27. Qxg3 {[%clk 0:01:33.1]} 27... Qh6 {[%clk
0:00:55.1]} 28. Bd3 {[%clk 0:01:25.4]} 28... Rh8 {[%clk 0:00:53.3]} 29. Rf1
{[%clk 0:01:23.6]} 29... Qh4 {[%clk 0:00:49.8]} 30. Rae1 {[%clk 0:01:17.8]}
30... Rb8 {[%clk 0:00:48.2]} 31. Re2 {[%clk 0:01:16]} 31... Rh6 {[%clk
0:00:46.9]} 32. Rg2 {[%clk 0:01:07.3]} 32... Rbh8 {[%clk 0:00:35.7]} 33. b4
{[%clk 0:01:00.7]} 33... Qxg3 {[%clk 0:00:20.9]} 34. hxg3 {[%clk 0:01:00.4]}
34... Rc8 {[%clk 0:00:20.4]} 35. Rc2 {[%clk 0:00:57.8]} 35... Rch8 {[%clk
0:00:13.5]} 36. Kg2 {[%clk 0:00:54.5]} 36... Rh2+ {[%clk 0:00:12.9]} 37. Kf3
{[%clk 0:00:54.5]} 37... Rxc2 {[%clk 0:00:13.8]} 38. Bxc2 {[%clk 0:00:55.2]}
38... Rh2 {[%clk 0:00:10.2]} 39. Rf2 {[%clk 0:00:53.9]} 39... Rh1 {[%clk
0:00:10.7]} 40. Ba4 {[%clk 0:00:53.2]} 40... Ne7 {[%clk 0:00:09.8]} 41. Bb5
{[%clk 0:00:48.6]} 41... Rg1 {[%clk 0:00:09.7]} 42. Rc2 {[%clk 0:00:47.9]} 42...
Nf5 {[%clk 0:00:08.8]} 43. Kf2 {[%clk 0:00:41.3]} 43... Rxg3 {[%clk 0:00:05.1]}
44. Be2 {[%clk 0:00:41.8]} 44... Rh3 {[%clk 0:00:03.5]} 45. b5 {[%clk
0:00:39.9]} 45... Rh2+ {[%clk 0:00:03.4]} 46. Kg1 {[%clk 0:00:38.8]} 46... Rh8
{[%clk 0:00:02.8]} 47. c4 {[%clk 0:00:38.8]} 47... Nd4 {[%clk 0:00:02]} 48. Rd2
{[%clk 0:00:38.1]} 48... Nxe2+ {[%clk 0:00:02.9]} 49. Rxe2 {[%clk 0:00:38.7]}
49... dxc4 {[%clk 0:00:03.8]} 50. Rc2 {[%clk 0:00:39.3]} 50... Rc8 {[%clk
0:00:04.5]} 51. Kf2 {[%clk 0:00:38.2]} 51... g5 {[%clk 0:00:04.9]} 52. fxg5
{[%clk 0:00:37.5]} 52... Kg6 {[%clk 0:00:05.3]} 53. Ke3 {[%clk 0:00:38.1]} 53...
Kxg5 {[%clk 0:00:05.6]} 54. Kd4 {[%clk 0:00:35.9]} 54... Kf5 {[%clk 0:00:04.8]}
55. Rf2+ {[%clk 0:00:35.9]} 55... Kg6 {[%clk 0:00:05.1]} 56. a4 {[%clk
0:00:33.9]} 56... c3 {[%clk 0:00:05.5]} 57. Rc2 {[%clk 0:00:34]} 57... Kf5
{[%clk 0:00:05.9]} 58. a5 {[%clk 0:00:34.3]} 58... f6 {[%clk 0:00:05.5]} 59.
exf6 {[%clk 0:00:30.6]} 59... Kxf6 {[%clk 0:00:06.4]} 60. Rxc3 {[%clk
0:00:27.7]} 60... Rb8 {[%clk 0:00:04.6]} 61. Rc5 {[%clk 0:00:26.5]} 61... Ke7
{[%clk 0:00:05.5]} 62. Ke5 {[%clk 0:00:25.5]} 62... Kd7 {[%clk 0:00:05.8]} 63.
Kd4 {[%clk 0:00:23.6]} 63... Rh8 {[%clk 0:00:05.5]} 64. Rg5 {[%clk 0:00:21]}
64... Kd6 {[%clk 0:00:03.7]} 65. Rg4 {[%clk 0:00:20.5]} 65... Rh5 {[%clk
0:00:03.6]} 66. Kc4 {[%clk 0:00:20.6]} 66... Rc5+ {[%clk 0:00:03.8]} 67. Kb4
{[%clk 0:00:21.1]} 67... Rd5 {[%clk 0:00:03.7]} 68. Rc4 {[%clk 0:00:21.1]} 68...
Rd1 {[%clk 0:00:03.3]} 69. Rc6+ {[%clk 0:00:21]} 69... Kd7 {[%clk 0:00:03.6]}
70. Ra6 {[%clk 0:00:21.4]} 70... Rb1+ {[%clk 0:00:03.7]} 71. Kc4 {[%clk
0:00:21.9]} 71... Rc1+ {[%clk 0:00:03.5]} 72. Kd3 {[%clk 0:00:22.2]} 72... Rc7
{[%clk 0:00:02.3]} 73. Kd4 {[%clk 0:00:21.6]} 73... Rb7 {[%clk 0:00:02.6]} 74.
Kc5 {[%clk 0:00:21.6]} 74... Rc7+ {[%clk 0:00:03.5]} 75. Kb4 {[%clk 0:00:19.9]}
75... Rb7 {[%clk 0:00:04.1]} 76. Rc6 {[%clk 0:00:19.9]} 76... Rc7 {[%clk
0:00:04.6]} 77. Ra6 {[%clk 0:00:14.7]} 77... Rb7 {[%clk 0:00:04.9]} 78. Kc4
{[%clk 0:00:14.4]} 78... Rc7+ {[%clk 0:00:05.3]} 79. Kd4 {[%clk 0:00:14.9]}
79... Rb7 {[%clk 0:00:06.2]} 80. b6 {[%clk 0:00:14.8]} 80... axb6 {[%clk
0:00:05.8]} 81. axb6 {[%clk 0:00:15.1]} 81... Kc6 {[%clk 0:00:05.4]} 82. Ke5
{[%clk 0:00:15.7]} 82... Rxb6 {[%clk 0:00:06.3]} 83. Rxb6+ {[%clk 0:00:16]}
83... Kxb6 {[%clk 0:00:07.2]} 84. Kxe6 {[%clk 0:00:16.2]} 1/2-1/2

[Event "Late-Titled-Tuesday-Blitz-October-10-2023"]
[Site "Chess.com"]
[Date "2023.10.10"]
[Round "7"]
[White "LeninGuerra"]
[Black "Cheer_Down"]
[Result "1/2-1/2"]
[WhiteElo "2618"]
[BlackElo "2464"]
[TimeControl "180+1"]
[EndTime "15:14:17 PDT"]
[Termination "Game drawn by 50-move rule"]

1. e4 {[%clk 0:03:00.9]} 1... c5 {[%clk 0:02:59.7]} 2. Nf3 {[%clk 0:02:56.8]}
2... d6 {[%clk 0:02:59.8]} 3. b4 {[%clk 0:02:55.3]} 3... Nf6 {[%clk 0:02:50.9]}
4. Bd3 {[%clk 0:02:51.8]} 4... g5 {[%clk 0:02:28.5]} 5. Nxg5 {[%clk 0:02:36.8]}
5... Rg8 {[%clk 0:02:28.4]} 6. Nf3 {[%clk 0:02:31.9]} 6... Rxg2 {[%clk
0:02:26.9]} 7. Bb2 {[%clk 0:02:30.5]} 7... cxb4 {[%clk 0:02:11.2]} 8. Qe2 {[%clk
0:02:21.5]} 8... Nc6 {[%clk 0:02:01.2]} 9. a3 {[%clk 0:01:46.8]} 9... Qb6 {[%clk
0:01:47.9]} 10. axb4 {[%clk 0:01:35.6]} 10... Ng4 {[%clk 0:01:39.6]} 11. Rf1
{[%clk 0:01:14.8]} 11... Nxh2 {[%clk 0:01:28.7]} 12. Nxh2 {[%clk 0:01:14.4]}
12... Rxh2 {[%clk 0:01:29.6]} 13. b5 {[%clk 0:01:13.2]} 13... Nd4 {[%clk
0:01:19.7]} 14. Qe3 {[%clk 0:01:02.9]} 14... Bg7 {[%clk 0:01:01.9]} 15. c3
{[%clk 0:00:56.8]} 15... Rh3 {[%clk 0:00:55.8]} 16. f3 {[%clk 0:00:48.3]} 16...
Nxf3+ {[%clk 0:00:20.2]} 17. Rxf3 {[%clk 0:00:45.7]} 17... Rh1+ {[%clk
0:00:14.4]} 18. Rf1 {[%clk 0:00:42.2]} 18... Qxe3+ {[%clk 0:00:13.9]} 19. dxe3
{[%clk 0:00:42.3]} 19... Rh3 {[%clk 0:00:14.1]} 20. Bc4 {[%clk 0:00:31.5]} 20...
Be6 {[%clk 0:00:13.4]} 21. Bxe6 {[%clk 0:00:30.5]} 21... fxe6 {[%clk 0:00:14.3]}
22. Ke2 {[%clk 0:00:28.1]} 22... Be5 {[%clk 0:00:14]} 23. Nd2 {[%clk 0:00:24.2]}
23... Kd7 {[%clk 0:00:14.2]} 24. Rh1 {[%clk 0:00:21.1]} 24... Rxh1 {[%clk
0:00:12.9]} 25. Rxh1 {[%clk 0:00:21.2]} 25... Rh8 {[%clk 0:00:13.8]} 26. Nf3
{[%clk 0:00:20]} 26... Bf6 {[%clk 0:00:14.1]} 27. Kd3 {[%clk 0:00:19.8]} 27...
h5 {[%clk 0:00:13.8]} 28. Rh2 {[%clk 0:00:20]} 28... h4 {[%clk 0:00:13.9]} 29.
c4 {[%clk 0:00:20.3]} 29... Bxb2 {[%clk 0:00:12.1]} 30. Rxb2 {[%clk 0:00:21.2]}
30... a6 {[%clk 0:00:12.7]} 31. Rh2 {[%clk 0:00:17.6]} 31... axb5 {[%clk
0:00:12.5]} 32. cxb5 {[%clk 0:00:17.8]} 32... b6 {[%clk 0:00:12.8]} 33. Rxh4
{[%clk 0:00:17.9]} 33... Rg8 {[%clk 0:00:12.7]} 34. Rh7 {[%clk 0:00:17.7]} 34...
Rg2 {[%clk 0:00:12.5]} 35. Nd4 {[%clk 0:00:17.7]} 35... Rb2 {[%clk 0:00:11.8]}
36. Kc3 {[%clk 0:00:15.4]} 36... Rb1 {[%clk 0:00:11.5]} 37. Kc2 {[%clk
0:00:15.4]} 37... Rb4 {[%clk 0:00:11.4]} 38. Kc3 {[%clk 0:00:15.6]} 38... Rb1
{[%clk 0:00:11.7]} 39. Rh6 {[%clk 0:00:15.9]} 39... e5 {[%clk 0:00:11.5]} 40.
Nf5 {[%clk 0:00:16.1]} 40... Rxb5 {[%clk 0:00:12.1]} 41. Rh7 {[%clk 0:00:16.5]}
41... Rc5+ {[%clk 0:00:12.3]} 42. Kb4 {[%clk 0:00:15.7]} 42... Rc1 {[%clk
0:00:12.3]} 43. Rxe7+ {[%clk 0:00:16.1]} 43... Kc6 {[%clk 0:00:13.1]} 44. Re6
{[%clk 0:00:16.2]} 44... Rb1+ {[%clk 0:00:14]} 45. Kc3 {[%clk 0:00:16]} 45...
Rd1 {[%clk 0:00:14.6]} 46. Re8 {[%clk 0:00:15]} 46... b5 {[%clk 0:00:14.6]} 47.
Rc8+ {[%clk 0:00:15.3]} 47... Kb7 {[%clk 0:00:14.8]} 48. Re8 {[%clk 0:00:14.7]}
48... Kc6 {[%clk 0:00:15.3]} 49. Ne7+ {[%clk 0:00:14.9]} 49... Kd7 {[%clk
0:00:15.3]} 50. Rb8 {[%clk 0:00:15.1]} 50... Kxe7 {[%clk 0:00:15.4]} 51. Rxb5
{[%clk 0:00:15.8]} 51... Ke6 {[%clk 0:00:16.1]} 52. Rb8 {[%clk 0:00:15.7]} 52...
Rc1+ {[%clk 0:00:16.6]} 53. Kd2 {[%clk 0:00:15.5]} 53... Rc6 {[%clk 0:00:16.3]}
54. Rh8 {[%clk 0:00:15.7]} 54... Ra6 {[%clk 0:00:15.7]} 55. Rh6+ {[%clk
0:00:16.3]} 55... Kd7 {[%clk 0:00:16.1]} 56. Ke2 {[%clk 0:00:16.8]} 56... Ra4
{[%clk 0:00:16.4]} 57. Kf3 {[%clk 0:00:17.2]} 57... Ra1 {[%clk 0:00:16.6]} 58.
Rh7+ {[%clk 0:00:16.4]} 58... Ke6 {[%clk 0:00:17]} 59. Rb7 {[%clk 0:00:16.2]}
59... Rf1+ {[%clk 0:00:16.6]} 60. Ke2 {[%clk 0:00:16.4]} 60... Rf8 {[%clk
0:00:16.6]} 61. Rb5 {[%clk 0:00:16.2]} 61... Rh8 {[%clk 0:00:16.8]} 62. Rd5
{[%clk 0:00:16.3]} 62... Rh4 {[%clk 0:00:16.9]} 63. Kd3 {[%clk 0:00:16.5]} 63...
Rh1 {[%clk 0:00:17]} 64. Rb5 {[%clk 0:00:16.9]} 64... Rd1+ {[%clk 0:00:17]} 65.
Ke2 {[%clk 0:00:17]} 65... Ra1 {[%clk 0:00:17.6]} 66. Rb8 {[%clk 0:00:17.3]}
66... Rh1 {[%clk 0:00:18]} 67. Re8+ {[%clk 0:00:17.6]} 67... Kd7 {[%clk
0:00:18.4]} 68. Rg8 {[%clk 0:00:18.1]} 68... Ke6 {[%clk 0:00:19]} 69. Rg6+
{[%clk 0:00:18.2]} 69... Kd7 {[%clk 0:00:19.4]} 70. Kf3 {[%clk 0:00:18.4]} 70...
Rh3+ {[%clk 0:00:19.3]} 71. Ke2 {[%clk 0:00:18.8]} 71... Rh2+ {[%clk 0:00:19.6]}
72. Kd3 {[%clk 0:00:19.1]} 72... Ra2 {[%clk 0:00:20.4]} 73. Kc4 {[%clk
0:00:18.9]} 73... Rc2+ {[%clk 0:00:19.6]} 74. Kd3 {[%clk 0:00:18.4]} 74... Ra2
{[%clk 0:00:19.5]} 75. Rg7+ {[%clk 0:00:18.9]} 75... Ke6 {[%clk 0:00:19.7]} 76.
Rg8 {[%clk 0:00:19.3]} 76... Ra3+ {[%clk 0:00:20.3]} 77. Ke2 {[%clk 0:00:19]}
77... Ra4 {[%clk 0:00:20.7]} 78. Kf3 {[%clk 0:00:19.3]} 78... Ra1 {[%clk
0:00:21.6]} 79. Rg6+ {[%clk 0:00:19.4]} 79... Kd7 {[%clk 0:00:21.9]} 80. Rh6
{[%clk 0:00:20]} 80... Ke7 {[%clk 0:00:22.1]} 81. Ke2 {[%clk 0:00:20.5]} 81...
Kd7 {[%clk 0:00:22.1]} 82. Kd3 {[%clk 0:00:21]} 82... Ra3+ {[%clk 0:00:22.5]}
83. Ke2 {[%clk 0:00:20.4]} 83... Ra4 {[%clk 0:00:23.1]} 84. Kf3 {[%clk
0:00:20.9]} 84... Ra1 {[%clk 0:00:23.7]} 85. Rh7+ {[%clk 0:00:21.4]} 85... Kc6
{[%clk 0:00:23.5]} 86. Rh6 {[%clk 0:00:22.3]} 86... Rf1+ {[%clk 0:00:23.7]} 87.
Ke2 {[%clk 0:00:22.6]} 87... Rf8 {[%clk 0:00:24.3]} 88. Kd3 {[%clk 0:00:22.9]}
88... Ra8 {[%clk 0:00:24.9]} 89. Rh7 {[%clk 0:00:23.5]} 89... Ra4 {[%clk
0:00:25.6]} 90. Rg7 {[%clk 0:00:22.9]} 90... Rb4 {[%clk 0:00:25.4]} 91. Rg8
{[%clk 0:00:22.6]} 91... Rb3+ {[%clk 0:00:25.7]} 92. Ke2 {[%clk 0:00:20.3]}
92... Ra3 {[%clk 0:00:26.3]} 93. Rc8+ {[%clk 0:00:20.1]} 93... Kd7 {[%clk
0:00:26.3]} 94. Rc1 {[%clk 0:00:20.7]} 94... Ra4 {[%clk 0:00:26.8]} 95. Kf3
{[%clk 0:00:20.7]} 95... Ke6 {[%clk 0:00:27.3]} 96. Rh1 {[%clk 0:00:21.1]} 96...
Ra8 {[%clk 0:00:27.8]} 97. Rh6+ {[%clk 0:00:21.5]} 97... Kd7 {[%clk 0:00:28.2]}
98. Rh7+ {[%clk 0:00:22.2]} 98... Kc6 {[%clk 0:00:27.8]} 99. Rh6 {[%clk
0:00:22.8]} 99... Rf8+ {[%clk 0:00:28.2]} 100. Ke2 {[%clk 0:00:22.2]} 100... Kc5
{[%clk 0:00:27.7]} 101. Kd3 {[%clk 0:00:22.6]} 1/2-1/2